bitfinex-derivatives/quotes_SOLF0:USTF0_20250706
["timestamp","ask_amount","ask_price","bid_price","bid_amount"]
[1751806740877,6.7166,148.84,148.81,6.7178]
[1751806741078,9.87419987,148.83,148.81,6.7178]
[1751806741278,4.71117207,148.82,148.81,6.7178]
[1751806742576,4.71050235,148.82,148.81,6.7178]
[1751806742881,9.87838507,148.82,148.8,52.9781]
[1751806743082,4.71050235,148.81,148.8,52.9781]
[1751806743277,6.717,148.83,148.8,52.9781]
[1751806743572,4.71041092,148.82,148.8,52.9781]
[1751806743773,6.717,148.83,148.8,52.9781]
[1751806743979,4.71041092,148.82,148.8,52.9781]
[1751806744178,6.717,148.83,148.8,52.9781]
[1751806744382,4.71006054,148.82,148.8,52.9781]
[1751806744582,4.69934561,148.81,148.8,52.9781]
[1751806744787,6.7167,148.84,148.81,6.7177]
[1751806744979,9.85314276,148.83,148.81,6.7177]
[1751806745178,4.69894378,148.82,148.81,6.7177]
[1751806747685,6.7167,148.84,148.81,6.7177]
[1751806747983,16.59202059,148.83,148.8,52.9781]
[1751806748179,4.72186145,148.82,148.8,52.9781]
[1751806748385,18.29029633,148.81,148.8,46.26]
[1751806748588,9.87571289,148.81,148.79,6.7184]
[1751806748779,4.7217304,148.8,148.79,6.7184]
[1751806749383,6.7176,148.82,148.79,6.7184]
[1751806749585,4.72163928,148.81,148.79,6.7184]
[1751806749782,6.7176,148.82,148.79,6.7184]
[1751806749988,4.72164454,148.81,148.79,6.7184]
[1751806750181,6.7176,148.82,148.79,6.7184]
[1751806750385,9.88644674,148.81,148.79,6.7184]
[1751806750586,4.72124385,148.8,148.79,6.7184]
[1751806750797,6.7176,148.82,148.79,6.7184]
[1751806750992,4.72125173,148.81,148.8,6.7183]
[1751806753197,9.8867073,148.81,148.8,6.7183]
[1751806753409,9.8867073,148.81,148.79,6.7185]
[1751806753698,4.72125173,148.8,148.79,6.7185]
[1751806754294,6.7171,148.83,148.8,6.718]
[1751806754503,4.72084829,148.82,148.8,6.718]
[1751806754698,6.7171,148.83,148.8,6.718]
[1751806755000,4.7207157,148.82,148.8,6.718]
[1751806755201,6.7171,148.83,148.8,6.718]
[1751806755402,4.72111976,148.82,148.8,6.718]
[1751806755601,4.72111976,148.81,148.8,6.718]
[1751806759201,9.85218439,148.81,148.8,6.718]
[1751806759710,9.85218439,148.81,148.79,6.7185]
[1751806759905,4.72111976,148.8,148.79,6.7185]
[1751806761205,9.85502125,148.8,148.79,6.7185]
[1751806761607,9.85502125,148.8,148.76,46.08]
[1751806761900,9.85628063,148.79,148.71,46.08]
[1751806762103,4.72111976,148.78,148.71,46.08]
[1751806762304,9.8577223,148.77,148.72,6.7217]
[1751806762506,9.8577223,148.76,148.71,46.08]
[1751806762709,9.8577223,148.75,148.7,6.7225]
[1751806762908,4.72111976,148.74,148.67,46.08]
[1751806763108,9.86078947,148.73,148.67,46.08]
[1751806763297,4.72111976,148.72,148.69,6.7229]
[1751806763498,6.7215,148.73,148.69,6.7229]
[1751806763699,4.70524908,148.72,148.69,6.7229]
[1751806764006,6.7211,148.74,148.7,6.7227]
[1751806764206,9.83815857,148.73,148.7,6.7227]
[1751806764409,4.70524908,148.72,148.7,6.7227]
[1751806764604,6.7211,148.74,148.7,6.7227]
[1751806764812,4.70108805,148.73,148.7,6.7227]
[1751806765106,6.7206,148.75,148.67,46.08]
[1751806765311,4.70092562,148.74,148.67,46.08]
[1751806765506,6.7206,148.75,148.67,46.08]
[1751806765706,4.69749878,148.74,148.71,6.722]
[1751806765908,6.7206,148.75,148.71,6.722]
[1751806766210,8.40375846,148.74,148.71,6.722]
[1751806766412,6.7206,148.75,148.71,6.722]
[1751806766705,11.70022684,148.79,148.67,46.08]
[1751806766908,18.13263344,148.78,148.67,46.08]
[1751806767105,18.13263344,148.77,148.67,46.08]
[1751806767301,19.80844781,148.76,148.67,46.08]
[1751806767506,8.39376437,148.75,148.67,46.08]
[1751806767708,6.7202,148.76,148.72,6.7216]
[1751806768404,6.7202,148.76,148.73,6.7212]
[1751806768606,2.2932,148.79,148.67,46.08]
[1751806768803,18.05072956,148.78,148.67,46.08]
[1751806769004,18.05072956,148.77,148.67,46.08]
[1751806769202,9.012,148.79,148.67,46.08]
[1751806769413,9.66328887,148.78,148.67,46.08]
[1751806769610,4.62400129,148.77,148.68,13.4471]
[1751806769812,6.9802,148.85,148.69,18.56813862]
[1751806770012,6.9802,148.85,148.68,13.4471]
[1751806770013,17.95824565,148.84,148.76,6.72]
[1751806770203,6.7185,148.8,148.76,6.72]
[1751806771008,6.7185,148.8,148.77,6.7194]
[1751806771710,6.7187,148.79,148.72,46.1]
[1751806772413,6.7187,148.79,148.75,6.7202]
[1751806773512,6.7187,148.79,148.72,46.1]
[1751806773513,6.7187,148.79,148.76,6.72]
[1751806773713,46.1,148.82,148.72,46.1]
[1751806773907,12.91047559,148.81,148.72,46.1]
[1751806774113,11.33011246,148.8,148.76,6.7196]
[1751806774312,6.7185,148.8,148.72,46.1]
[1751806774710,4.61183497,148.79,148.72,46.1]
[1751806774910,6.7185,148.8,148.72,46.1]
[1751806775214,4.61183759,148.79,148.72,46.1]
[1751806775513,6.7185,148.8,148.77,6.7194]
[1751806775714,4.67155121,148.79,148.77,6.7194]
[1751806775919,6.7185,148.8,148.77,6.7194]
[1751806776113,4.67155121,148.79,148.78,6.7192]
[1751806776318,6.718,148.81,148.78,6.7192]
[1751806777414,4.71513779,148.8,148.78,6.7192]
[1751806777616,6.718,148.81,148.78,6.7192]
[1751806777806,4.7151378,148.8,148.78,6.7192]
[1751806778010,6.718,148.81,148.78,6.7192]
[1751806778216,4.7151378,148.8,148.78,6.7192]
[1751806778515,6.718,148.81,148.78,6.7192]
[1751806778717,4.71558146,148.8,148.78,6.7192]
[1751806779017,6.718,148.81,148.78,6.7192]
[1751806779214,4.71558146,148.8,148.78,6.7192]
[1751806779419,6.718,148.81,148.78,6.7192]
[1751806779619,4.7379734,148.8,148.78,6.7192]
[1751806779819,6.718,148.81,148.78,6.7192]
[1751806780017,4.7379734,148.8,148.79,6.7187]
[1751806780213,52.8175,148.82,148.79,6.7187]
[1751806780414,13.09151687,148.81,148.79,6.7187]
[1751806780614,6.7175,148.82,148.79,6.7187]
[1751806780817,13.09150828,148.81,148.8,6.7183]
[1751806783319,8.35313659,148.81,148.8,6.7183]
[1751806785022,6.7164,148.85,148.82,6.7172]
[1751806785322,13.09307077,148.84,148.82,6.7172]
[1751806785620,8.35474958,148.83,148.82,6.7172]
[1751806786223,13.09302695,148.83,148.81,6.7176]
[1751806786526,6.7165,148.84,148.81,6.7176]
[1751806786712,4.7382656,148.83,148.82,6.7173]
[1751806786919,4.73826295,148.83,148.82,6.7173]
[1751806787617,6.7162,148.85,148.82,6.7173]
[1751806787823,4.73813918,148.84,148.82,6.7173]
[1751806788020,6.7162,148.85,148.82,6.7173]
[1751806788229,13.09396673,148.84,148.82,6.7173]
[1751806788523,8.35582755,148.83,148.82,6.7173]
[1751806789421,6.7157,148.86,148.83,6.7167]
[1751806789617,4.78101509,148.85,148.83,6.7167]
[1751806789815,6.7157,148.86,148.83,6.7167]
[1751806790019,4.78101509,148.85,148.83,6.7167]
[1751806790215,6.7157,148.86,148.83,6.7167]
[1751806790516,4.78099949,148.85,148.83,6.7167]
[1751806790828,6.7157,148.86,148.83,6.7167]
[1751806791022,4.78056148,148.85,148.83,6.7167]
[1751806791328,6.7157,148.86,148.83,6.7167]
[1751806791627,4.78012336,148.85,148.83,6.7167]
[1751806791826,6.7153,148.87,148.83,6.7167]
[1751806792026,18.39968662,148.86,148.83,6.7167]
[1751806792225,13.2232011,148.85,148.83,6.7167]
[1751806792426,8.44307774,148.84,148.83,6.7167]
[1751806793327,16.10687446,148.87,148.77,46.36]
[1751806793328,6.7153,148.87,148.84,6.7164]
[1751806793530,9.95486076,148.86,148.84,6.7164]
[1751806793719,4.7792841,148.85,148.84,6.7164]
[1751806794532,13.22945547,148.85,148.84,6.7164]
[1751806795229,13.22945547,148.85,148.83,6.7167]
[1751806795521,9.39157446,148.89,148.83,6.7167]
[1751806795728,18.40166795,148.88,148.83,6.7167]
[1751806795929,25.11706795,148.87,148.83,6.7167]
[1751806796129,4.7780634,148.86,148.78,4.5728]
[1751806796324,6.7148,148.88,148.78,4.5728]
[1751806796519,6.25e-06,148.87,148.78,4.5728]
[1751806796719,4.6157,148.94,148.79,194.7]
[1751806796921,15.15586895,148.93,148.79,194.7]
[1751806797123,4.6157,148.94,148.9,6.7137]
[1751806797323,4.6157,148.94,148.87,46.34]
[1751806797529,11.3278,148.94,148.9,6.7134]
[1751806798228,4.6157,148.94,148.9,6.7134]
[1751806798429,4.6157,148.94,148.87,46.34]
[1751806798430,6.7117,148.95,148.91,6.7132]
[1751806799125,6.7117,148.95,148.89,6.7139]
[1751806799526,6.7112,148.96,148.87,46.34]
[1751806799731,2.2142,148.97,148.9,6.7133]
[1751806800032,8.42165603,148.96,148.9,6.7133]
[1751806800231,2.2142,148.97,148.9,6.7133]
[1751806800232,6.7118,148.95,148.9,6.7133]
[1751806801533,2.2142,148.97,148.89,6.7141]
[1751806802334,6.7127,148.93,148.89,6.7141]
[1751806802630,2.2142,148.97,148.89,6.7141]
[1751806802833,6.7122,148.94,148.9,6.7137]
[1751806803034,2.2142,148.97,148.9,6.7137]
[1751806803626,2.2142,148.97,148.87,46.34]
[1751806803832,6.7127,148.93,148.87,46.34]
[1751806804132,2.2142,148.97,148.87,46.34]
[1751806804333,6.7147,148.88,148.84,580.1]
[1751806805037,6.7152,148.87,148.84,586.8161]
[1751806805229,8.44705246,148.96,148.84,586.8161]
[1751806805432,8.44705246,148.95,148.84,586.8161]
[1751806805632,8.44705246,148.94,148.84,586.8161]
[1751806805834,11.60577446,148.97,148.84,586.8161]
[1751806806036,8.44595937,148.96,148.84,586.8161]
[1751806806237,8.44595937,148.95,148.84,586.8161]
[1751806806438,8.44595937,148.94,148.84,586.8161]
[1751806806737,6.7148,148.88,148.84,586.8161]
[1751806807032,6.7159,148.86,148.84,580.1]
[1751806807233,46.32,148.93,148.83,46.34]
[1751806807531,13.01730049,148.92,148.83,46.34]
[1751806807728,4.573,148.92,148.83,46.34]
[1751806807928,8.44462106,148.91,148.83,46.34]
[1751806808238,2.3623,148.91,148.84,6.7161]
[1751806808629,6.7145,148.89,148.83,46.34]
[1751806808833,2.3623,148.91,148.83,46.34]
[1751806809136,6.7137,148.9,148.86,6.7154]
[1751806809339,46.32,148.93,148.83,46.34]
[1751806809632,9.85053009,148.92,148.83,46.34]
[1751806809838,6.715,148.88,148.84,6.7161]
[1751806810432,6.715,148.88,148.85,6.7159]
[1751806810830,6.7152,148.87,148.84,6.7163]
[1751806811541,6.7158,148.86,148.83,46.34]
[1751806811934,4.98556748,148.91,148.83,46.34]
[1751806812139,6.7154,148.87,148.83,53.0566]
[1751806812834,6.7157,148.86,148.83,46.34]
[1751806813030,46.32,148.93,148.83,46.34]
[1751806813241,18.07561869,148.92,148.83,46.34]
[1751806813438,6.7156,148.86,148.83,46.34]
[1751806813635,46.32,148.93,148.83,46.34]
[1751806813840,4.6041,148.9,148.79,46.34]
[1751806814042,20.47296557,148.89,148.79,46.34]
[1751806814240,18.08286557,148.88,148.79,46.34]
[1751806814541,6.7172,148.83,148.79,53.0584]
[1751806815037,6.7172,148.83,148.79,46.34]
[1751806816638,6.7172,148.83,148.79,53.0584]
[1751806816838,6.7172,148.83,148.79,46.34]
[1751806818739,6.7172,148.83,148.8,6.7182]
[1751806821440,8.36844444,148.88,148.79,46.34]
[1751806821441,4.67006835,148.82,148.79,46.34]
[1751806821647,46.34,148.88,148.79,46.34]
[1751806821849,17.99364683,148.87,148.79,46.34]
[1751806822046,6.7179,148.81,148.79,46.34]
[1751806822852,9.39157446,148.86,148.75,46.34]
[1751806823051,17.99892233,148.85,148.74,46.34]
[1751806823354,6.7186,148.8,148.75,6.7201]
[1751806823653,4.7105,148.84,148.74,46.34]
[1751806823847,6.7181,148.81,148.74,46.34]
[1751806824247,6.7172,148.83,148.79,6.7186]
[1751806824454,4.67182838,148.82,148.74,46.34]
[1751806824654,4.7105,148.84,148.74,46.34]
[1751806824954,11.38787851,148.83,148.79,6.7184]
[1751806825252,6.7171,148.83,148.74,46.34]
[1751806825451,11.4271,148.84,148.8,6.7181]
[1751806825656,6.7166,148.84,148.8,6.7181]
[1751806825845,6.7166,148.84,148.79,46.34]
[1751806826045,6.7166,148.84,148.81,6.7178]
[1751806826654,6.7166,148.84,148.8,6.7181]
[1751806830657,6.7172,148.83,148.79,53.0586]
[1751806832264,11.37955985,148.82,148.79,6.7186]
[1751806832465,60.33367446,148.88,148.78,53.0591]
[1751806832665,18.00131232,148.87,148.78,53.0591]
[1751806832868,6.7177,148.82,148.78,53.0591]
[1751806833268,4.66203728,148.81,148.78,53.0591]
[1751806833567,6.7177,148.82,148.78,53.0591]
[1751806834267,6.7177,148.82,148.78,46.34]
[1751806834461,6.7177,148.82,148.79,6.7187]
[1751806835866,6.7167,148.84,148.8,6.7182]
[1751806839168,6.7167,148.84,148.81,6.7178]
[1751806839778,6.7167,148.84,148.8,6.718]
[1751806840878,6.717,148.83,148.8,6.718]
[1751806841977,6.7165,148.84,148.8,6.718]
[1751806843176,6.7165,148.84,148.78,46.34]
[1751806843778,6.7165,148.84,148.8,6.7179]
[1751806847869,6.7161,148.85,148.81,6.7176]
[1751806848071,50.9421,148.88,148.81,6.7176]
[1751806848377,6.7163,148.85,148.78,46.34]
[1751806848577,4.66476812,148.84,148.78,46.34]
[1751806848779,50.9421,148.88,148.78,46.34]
[1751806848974,18.05454059,148.87,148.78,46.34]
[1751806849283,4.66734032,148.86,148.78,46.34]
[1751806849574,6.7158,148.86,148.83,6.7166]
[1751806851280,4.67224482,148.85,148.83,6.7166]
[1751806851477,6.7158,148.86,148.83,6.7166]
[1751806851677,4.67230947,148.85,148.83,6.7166]
[1751806851876,6.7158,148.86,148.83,6.7166]
[1751806852080,4.67230947,148.85,148.83,6.7166]
[1751806852278,6.7158,148.86,148.83,6.7166]
[1751806852482,4.67228125,148.85,148.83,6.7166]
[1751806852682,6.7158,148.86,148.83,6.7166]
[1751806852884,4.67233536,148.85,148.83,6.7166]
[1751806853076,6.7158,148.86,148.83,6.7166]
[1751806853277,4.67233535,148.85,148.83,6.7166]
[1751806853479,6.7158,148.86,148.83,6.7166]
[1751806854480,4.6961186,148.85,148.78,46.34]
[1751806854681,13.13648159,148.84,148.78,46.34]
[1751806854983,4.69622751,148.83,148.78,46.34]
[1751806855186,6.7167,148.84,148.8,6.7179]
[1751806855383,4.6971254,148.83,148.8,6.7179]
[1751806855685,6.7167,148.84,148.8,6.7179]
[1751806855886,4.69833665,148.83,148.79,6.7186]
[1751806856184,4.69833665,148.82,148.78,46.34]
[1751806856375,6.717,148.83,148.78,46.34]
[1751806856580,4.69934514,148.82,148.79,6.7184]
[1751806856782,4.69934514,148.81,148.79,6.7184]
[1751806857080,6.717,148.83,148.79,6.7184]
[1751806857286,11.41701786,148.82,148.79,6.7184]
[1751806857478,4.69961786,148.81,148.78,53.059]
[1751806857785,6.7174,148.82,148.78,53.059]
[1751806857979,4.70035603,148.81,148.79,6.7186]
[1751806858181,6.7174,148.82,148.79,6.7186]
[1751806858381,4.70035408,148.81,148.79,6.7186]
[1751806858581,6.7174,148.82,148.79,6.7186]
[1751806858886,13.79164034,148.86,148.79,6.7186]
[1751806858887,4.70072124,148.81,148.79,6.7186]
[1751806859076,6.7171,148.83,148.79,6.7186]
[1751806859277,18.07796565,148.82,148.79,6.7186]
[1751806859483,6.7166,148.84,148.8,6.7181]
[1751806859682,18.07701661,148.83,148.8,6.7181]
[1751806859984,4.66740532,148.82,148.8,6.7181]
[1751806860181,6.7166,148.84,148.8,6.7181]
[1751806860382,4.66726111,148.83,148.8,6.7181]
[1751806860587,4.66726111,148.82,148.81,6.7178]
[1751806860789,4.3925,148.86,148.78,46.34]
[1751806860984,18.03751997,148.85,148.78,46.34]
[1751806861191,4.66645872,148.84,148.82,6.7171]
[1751806861388,46.38,148.88,148.78,46.34]
[1751806861588,18.03601149,148.87,148.78,46.34]
[1751806861790,4.66601275,148.86,148.78,46.34]
[1751806861984,2.3901,148.89,148.78,46.34]
[1751806862192,6.7154,148.87,148.78,46.34]
[1751806862393,4.6651972,148.86,148.78,46.34]
[1751806862594,6.7154,148.87,148.78,46.34]
[1751806862803,4.66431798,148.86,148.78,46.34]
[1751806863093,6.7154,148.87,148.83,6.7166]
[1751806863291,4.66431798,148.86,148.83,6.7166]
[1751806863484,6.7154,148.87,148.83,6.7166]
[1751806863685,4.66364406,148.86,148.83,6.7166]
[1751806863993,6.7148,148.88,148.78,46.34]
[1751806864195,4.66364406,148.87,148.78,46.34]
[1751806864392,4.66364406,148.86,148.78,46.34]
[1751806864692,6.7151,148.87,148.84,6.7162]
[1751806864990,4.69575969,148.86,148.84,6.7162]
[1751806865187,4.69575969,148.85,148.84,6.7162]
[1751806865392,6.7151,148.87,148.84,6.7162]
[1751806865594,9.63060388,148.86,148.84,6.7162]
[1751806865795,4.63414752,148.85,148.84,6.7162]
[1751806866497,4.63414752,148.85,148.83,6.7167]
[1751806866692,6.7156,148.86,148.78,46.34]
[1751806866998,18.04838018,148.85,148.78,46.34]
[1751806867194,18.04838018,148.84,148.78,46.34]
[1751806867498,18.05060931,148.83,148.78,46.34]
[1751806867697,4.63443806,148.82,148.78,46.34]
[1751806867897,4.63443806,148.81,148.78,46.34]
[1751806868096,2.4033,148.83,148.78,46.34]
[1751806868293,13.42114972,148.82,148.78,46.34]
[1751806868494,4.63731018,148.81,148.78,46.34]
[1751806868797,4.6353,148.83,148.78,46.34]
[1751806868998,18.05845115,148.82,148.78,46.34]
[1751806869198,4.63742334,148.81,148.77,6.7192]
[1751806869388,6.7183,148.8,148.77,6.7192]
[1751806869794,6.7183,148.8,148.74,626.42]
[1751806869795,6.7183,148.8,148.76,6.7199]
[1751806869997,4.6353,148.83,148.74,626.42]
[1751806870200,18.02407258,148.82,148.74,633.1408]
[1751806870498,18.02407258,148.81,148.74,52.9808]
[1751806870796,6.7196,148.78,148.74,52.9808]
[1751806871503,6.7188,148.79,148.75,6.7204]
[1751806871801,4.60401818,148.78,148.75,6.7204]
[1751806872099,60.29444034,148.83,148.74,52.9808]
[1751806872401,17.94745642,148.82,148.74,46.26]
[1751806872599,17.94745642,148.81,148.74,46.26]
[1751806872802,6.7191,148.79,148.75,6.7204]
[1751806873303,4.6021519,148.78,148.74,46.26]
[1751806873497,9.39914034,148.82,148.74,46.26]
[1751806873700,17.94059229,148.81,148.74,46.26]
[1751806873900,17.94059229,148.8,148.74,46.26]
[1751806874098,17.94059229,148.79,148.74,46.26]
[1751806874302,20.28359229,148.78,148.7,46.26]
[1751806874503,4.60219565,148.77,148.7,46.26]
[1751806874704,6.7202,148.76,148.7,46.26]
[1751806874908,2.343,148.78,148.7,46.26]
[1751806875102,17.74521807,148.77,148.7,46.26]
[1751806875404,4.53465053,148.76,148.7,46.26]
[1751806875603,2.343,148.78,148.7,46.26]
[1751806875797,4.53191892,148.77,148.7,46.26]
[1751806876003,17.73690388,148.76,148.7,46.26]
[1751806876196,4.53202937,148.75,148.7,46.26]
[1751806876403,4.6147,148.77,148.7,46.26]
[1751806876705,17.72512277,148.76,148.7,46.26]
[1751806876905,4.52976024,148.75,148.7,46.26]
[1751806877105,4.6147,148.77,148.7,46.26]
[1751806877304,4.52962533,148.76,148.7,46.26]
[1751806877501,4.52962533,148.75,148.7,46.26]
[1751806877698,6.7213,148.74,148.7,52.9826]
[1751806878304,4.6147,148.77,148.7,46.26]
[1751806878507,4.52460065,148.76,148.7,46.26]
[1751806878703,4.6147,148.77,148.67,580.12]
[1751806878905,17.70587355,148.76,148.67,580.12]
[1751806879211,17.70587355,148.75,148.66,46.28]
[1751806879507,6.7222,148.72,148.68,6.7235]
[1751806881412,6.7223,148.71,148.67,6.7239]
[1751806881910,17.5419736,148.76,148.66,46.28]
[1751806882210,4.47266976,148.75,148.66,46.28]
[1751806882410,6.7221,148.72,148.68,6.7237]
[1751806882609,17.53237437,148.76,148.66,46.28]
[1751806882911,4.6147,148.77,148.66,46.28]
[1751806882912,6.7232,148.7,148.66,46.28]
[1751806883302,6.7232,148.7,148.66,53.0044]
[1751806883807,6.7232,148.69,148.66,46.28]
[1751806884403,17.52313485,148.75,148.66,46.28]
[1751806884611,12.718885,148.74,148.66,46.28]
[1751806884808,4.46655655,148.73,148.66,46.28]
[1751806885011,4.80124735,148.76,148.66,46.28]
[1751806885212,17.47951836,148.75,148.66,46.28]
[1751806885417,4.46610436,148.74,148.66,46.28]
[1751806885620,50.74610436,148.73,148.66,46.28]
[1751806885919,46.28,148.73,148.66,46.28]
[1751806886219,2.3828,148.72,148.66,46.28]
[1751806886720,6.7235,148.69,148.66,46.28]
[1751806888212,6.7235,148.69,148.66,53.0045]
[1751806888411,6.7229,148.7,148.66,53.0045]
[1751806888610,2.3828,148.72,148.64,46.28]
[1751806889120,2.3828,148.72,148.65,6.7249]
[1751806889323,2.3828,148.72,148.64,46.28]
[1751806890021,2.3628,148.71,148.64,46.28]
[1751806890524,4.5559,148.71,148.64,46.28]
[1751806890721,6.7243,148.67,148.64,46.28]
[1751806890920,4.5559,148.71,148.64,46.28]
[1751806891121,2.3828,148.72,148.64,46.28]
[1751806891319,6.7226,148.71,148.67,6.7238]
[1751806892320,6.722,148.72,148.68,6.7235]
[1751806892721,46.28,148.73,148.64,46.28]
[1751806892921,6.7226,148.71,148.67,6.7239]
[1751806893124,46.28,148.73,148.64,46.28]
[1751806893521,6.723,148.7,148.66,6.7244]
[1751806893723,46.28,148.73,148.64,46.28]
[1751806893923,6.7244,148.67,148.64,46.28]
[1751806894227,46.28,148.73,148.64,46.28]
[1751806894422,4.4539,148.71,148.64,46.28]
[1751806894727,2.3602,148.7,148.61,4.6106]
[1751806894923,6.7246,148.66,148.61,4.6106]
[1751806895123,2.3602,148.7,148.61,4.6106]
[1751806895522,6.7244,148.67,148.63,6.7259]
[1751806895726,2.3602,148.7,148.63,6.7259]
[1751806896424,6.7244,148.67,148.63,6.7259]
[1751806898129,6.7238,148.68,148.61,4.6106]
[1751806898324,2.2655,148.71,148.61,4.6106]
[1751806898930,46.28,148.73,148.61,4.6106]
[1751806899331,6.7226,148.71,148.67,6.7238]
[1751806905542,6.7228,148.7,148.67,6.7238]
[1751806905842,46.28,148.73,148.67,6.7238]
[1751806906234,6.7227,148.71,148.67,6.7238]
[1751806907736,6.7227,148.71,148.66,6.7244]
[1751806908138,6.7228,148.7,148.66,6.7244]
[1751806909041,6.7233,148.69,148.66,6.7244]
[1751806909340,6.7233,148.69,148.65,6.7248]
[1751806910536,6.7237,148.68,148.65,6.7248]
[1751806912041,6.7236,148.69,148.61,66.6106]
[1751806913244,6.7236,148.69,148.65,6.7246]
[1751806913441,46.28,148.73,148.65,6.7246]
[1751806913442,6.7238,148.68,148.65,6.7246]
[1751806914740,46.28,148.73,148.65,6.7246]
[1751806914950,17.40215814,148.72,148.65,6.7246]
[1751806915142,17.40215814,148.71,148.65,6.7246]
[1751806915440,46.28,148.73,148.65,6.7246]
[1751806915441,6.7239,148.68,148.65,6.7246]
[1751806916944,46.28,148.73,148.61,4.6106]
[1751806917142,17.41555229,148.72,148.61,4.6106]
[1751806917342,17.41555229,148.71,148.61,4.6106]
[1751806917547,6.7243,148.67,148.63,6.7259]
[1751806919054,6.7237,148.68,148.61,4.6106]
[1751806919250,4.42365669,148.67,148.61,4.6106]
[1751806919549,6.7237,148.68,148.61,4.6106]
[1751806919755,11.14994357,148.67,148.64,6.7252]
[1751806919951,6.7242,148.67,148.64,6.7252]
[1751806921746,6.7237,148.68,148.61,4.6106]
[1751806922251,6.7237,148.68,148.64,6.7251]
[1751806923948,6.7237,148.68,148.65,6.725]
[1751806925460,6.7234,148.69,148.65,6.725]
[1751806925755,55.62521681,148.73,148.65,6.725]
[1751806925956,17.4067316,148.72,148.65,6.725]
[1751806926158,17.4067316,148.71,148.65,6.725]
[1751806926359,6.7239,148.68,148.64,6.7253]
[1751806927459,6.7242,148.67,148.64,6.7253]
[1751806927655,9.34521681,148.72,148.6,47.97556926]
[1751806927851,26.75674616,148.71,148.6,47.97556926]
[1751806928153,6.7246,148.66,148.62,6.7261]
[1751806929855,6.725,148.65,148.61,6.7267]
[1751806930161,46.24,148.68,148.6,47.97556926]
[1751806930351,6.7257,148.64,148.6,47.97556926]
[1751806930758,6.7257,148.64,148.6,54.70256926]
[1751806932360,46.24,148.68,148.6,54.70256926]
[1751806932361,6.7259,148.63,148.6,54.70256926]
[1751806933373,6.7265,148.62,148.6,1.67556926]
[1751806933562,55.58521681,148.68,148.6,1.67556926]
[1751806933761,12.96065446,148.67,148.6,1.67556926]
[1751806934075,6.7258,148.64,148.6,1.67556926]
[1751806934259,4.63434722,148.63,148.6,1.67556926]
[1751806934460,6.7259,148.63,148.6,1.67556926]
[1751806935062,6.7259,148.63,148.6,8.40286926]
[1751806935264,33.6149,148.6,148.51,7.131e-05]
[1751806935565,33.6149,148.6,148.39,2.3395]
[1751806935566,9.34521681,148.52,148.39,2.3395]
[1751806935768,6.7318,148.5,148.39,2.3395]
[1751806936061,12.91700254,148.49,148.41,1.17213156]
[1751806936366,4.6121329,148.48,148.42,47.98]
[1751806936567,9.72753189,148.47,148.43,2.2326]
[1751806936871,14.34332455,148.46,148.4,47.98]
[1751806937166,15.4381024,148.45,148.4,47.98]
[1751806937366,9.72987681,148.44,148.4,47.98]
[1751806937561,9.34521681,148.49,148.4,47.98]
[1751806937759,9.34521681,148.49,148.39,585.4321]
[1751806937760,19.98229368,148.48,148.39,585.4321]
[1751806937962,6.734,148.46,148.4,47.98]
[1751806938262,19.98229368,148.45,148.39,631.1995]
[1751806938462,6.7351,148.43,148.39,2.3395]
[1751806938666,19.96125992,148.42,148.39,50.3395]